bitfinex-derivatives/quotes_BTCF0:USTF0_20241210
["timestamp","ask_amount","ask_price","bid_price","bid_amount"]
[1733866251205,0.09253449,97087.0,97076.0,0.051472]
[1733866251411,0.05301713,97078.0,97076.0,0.051472]
[1733866252410,0.00154613,97078.0,97076.0,0.412272]
[1733866252611,0.00154613,97078.0,97076.0,0.4207747]
[1733866252816,0.00354613,97078.0,97076.0,0.4207747]
[1733866253522,0.00454613,97078.0,97076.0,0.4207747]
[1733866253722,0.09218562,97077.0,97076.0,0.4207747]
[1733866254017,0.00454613,97078.0,97076.0,0.4207747]
[1733866254316,0.00354613,97078.0,97076.0,0.4207747]
[1733866254716,0.00154613,97078.0,97076.0,0.4207747]
[1733866255212,0.09214294,97077.0,97076.0,0.3693027]
[1733866255413,0.05301713,97078.0,97076.0,0.3693027]
[1733866255809,0.051477,97068.0,97066.0,0.3608]
[1733866257309,0.051477,97068.0,97066.0,0.3618]
[1733866257716,0.051477,97068.0,97066.0,0.3638]
[1733866258220,0.12286692,97072.0,97066.0,0.3638]
[1733866258425,0.09214827,97067.0,97066.0,0.415277]
[1733866258719,0.09214827,97072.0,97066.0,0.3638]
[1733866258917,0.00154613,97078.0,97066.0,0.3638]
[1733866258918,0.09214827,97074.0,97066.0,0.3638]
[1733866259413,0.09214827,97073.0,97066.0,0.3638]
[1733866259815,0.09214827,97074.0,97072.0,0.051474]
[1733866260018,0.051473,97075.0,97074.0,0.051473]
[1733866260415,0.051473,97075.0,97074.0,0.412273]
[1733866260616,0.14362127,97075.0,97074.0,0.412273]
[1733866260817,0.051473,97075.0,97074.0,0.412273]
[1733866261013,0.14362127,97075.0,97074.0,0.412273]
[1733866261224,0.14362127,97075.0,97074.0,0.3608]
[1733866261620,0.051477,97067.0,97066.0,0.001]
[1733866261828,0.09211202,97069.0,97068.0,0.051476]
[1733866262028,0.09211568,97071.0,97066.0,0.001]
[1733866262324,0.14358968,97072.0,97070.0,0.051475]
[1733866262529,0.051475,97071.0,97070.0,0.051475]
[1733866262720,0.09211568,97074.0,97066.0,0.001]
[1733866263031,0.051474,97072.0,97071.0,0.051475]
[1733866263228,0.09411568,97075.0,97074.0,0.051473]
[1733866263529,0.053473,97075.0,97074.0,0.051473]
[1733866264224,0.053473,97075.0,97065.0,0.46287825]
[1733866264225,0.001,97075.0,97066.0,0.001]
[1733866264429,0.001,97075.0,97069.0,0.051476]
[1733866264430,0.051475,97071.0,97069.0,0.051476]
[1733866264737,0.051475,97071.0,97070.0,0.051475]
[1733866265120,0.051476,97069.0,97065.0,0.3616]
[1733866265427,0.051477,97066.0,97065.0,0.3608]
[1733866265734,0.001,97075.0,97065.0,0.3608]
[1733866265735,0.09208555,97070.0,97065.0,0.3608]
[1733866265923,0.09208555,97073.0,97072.0,0.051474]
[1733866266125,0.001,97075.0,97065.0,0.3608]
[1733866266126,0.051473,97074.0,97067.0,0.051477]
[1733866266323,0.051473,97074.0,97065.0,0.3608]
[1733866266324,0.051473,97074.0,97073.0,0.3608]
[1733866266820,0.051473,97074.0,97073.0,0.412274]
[1733866267222,0.00154613,97078.0,97077.0,0.051472]
[1733866267426,0.05301713,97078.0,97077.0,0.051472]
[1733866268025,0.051473,97074.0,97073.0,0.412273]
[1733866269428,0.003,97078.0,97077.0,0.051472]
[1733866269820,0.054471,97078.0,97077.0,0.051472]
[1733866270229,0.051471,97078.0,97077.0,0.051472]
[1733866270526,0.12286692,97083.0,97073.0,0.3608]
[1733866270732,0.14370596,97074.0,97073.0,0.3608]
[1733866271032,0.051473,97074.0,97073.0,0.3608]
[1733866271235,0.17433992,97074.0,97073.0,0.3608]
[1733866271529,0.051477,97066.0,97065.0,0.3608]
[1733866272238,0.111777,97066.0,97065.0,0.3608]
[1733866273428,0.111777,97066.0,97065.0,0.3618]
[1733866274633,0.12330664,97068.0,97067.0,0.051477]
[1733866274823,0.051473,97075.0,97071.0,0.051475]
[1733866275023,0.15358365,97078.0,97071.0,0.051475]
[1733866275226,0.15358365,97074.0,97067.0,0.3608]
[1733866275433,0.051476,97068.0,97067.0,0.3608]
[1733866275625,0.051476,97068.0,97067.0,0.412277]
[1733866276031,0.051476,97068.0,97067.0,0.413277]
[1733866277020,0.15358365,97072.0,97067.0,0.3618]
[1733866277222,0.051475,97073.0,97072.0,0.051474]
[1733866277432,0.20505865,97073.0,97072.0,0.051474]
[1733866277831,0.051475,97073.0,97072.0,0.051474]
[1733866278223,0.20505865,97073.0,97072.0,0.051474]
[1733866278423,0.051475,97073.0,97072.0,0.051474]
[1733866278630,0.20571419,97073.0,97072.0,0.051474]
[1733866278826,0.051475,97073.0,97072.0,0.051474]
[1733866279023,0.051475,97070.0,97068.0,0.051476]
[1733866279231,0.051475,97070.0,97067.0,0.3638]
[1733866279527,0.051476,97068.0,97067.0,0.3628]
[1733866279740,0.051476,97068.0,97067.0,0.3608]
[1733866280336,0.10153863,97068.0,97067.0,0.3608]
[1733866280540,0.10153863,97068.0,97067.0,0.3628]
[1733866280925,0.10154076,97068.0,97067.0,0.3608]
[1733866281125,0.2057528,97068.0,97067.0,0.3628]
[1733866281738,0.051476,97068.0,97067.0,0.3638]
[1733866282741,0.051476,97068.0,97067.0,0.3618]
[1733866282942,0.052476,97068.0,97067.0,0.3618]
[1733866283238,0.112176,97068.0,97067.0,0.3608]
[1733866283439,0.111176,97068.0,97067.0,0.3608]
[1733866284137,0.26545053,97068.0,97067.0,0.3608]
[1733866284637,0.111176,97068.0,97067.0,0.3608]
[1733866284944,0.16123933,97068.0,97067.0,0.3608]
[1733866285431,0.051478,97064.0,97063.0,0.3608]
[1733866285639,0.10154133,97064.0,97063.0,0.3608]
[1733866286233,0.10154133,97064.0,97063.0,0.7216]
[1733866286439,0.15429437,97067.0,97066.0,0.051477]
[1733866286635,0.15529437,97068.0,97067.0,0.051477]
[1733866286934,0.15429437,97069.0,97068.0,0.051476]
[1733866287143,0.051474,97074.0,97069.0,0.051476]
[1733866287439,0.051474,97072.0,97071.0,0.051475]
[1733866287641,0.10153748,97072.0,97071.0,0.051475]
[1733866287832,0.05006348,97072.0,97071.0,0.412275]
[1733866288232,0.15428455,97074.0,97071.0,0.3608]
[1733866288435,0.15427884,97075.0,97071.0,0.3608]
[1733866288636,0.15427884,97075.0,97074.0,0.051473]
[1733866288835,0.15427884,97078.0,97077.0,0.051472]
[1733866289045,0.15427884,97080.0,97074.0,0.051473]
[1733866289243,0.15427884,97081.0,97080.0,0.05147]
[1733866289637,0.15427884,97082.0,97081.0,0.051469]
[1733866289838,0.051468,97084.0,97079.0,0.3608]
[1733866289839,0.15427884,97084.0,97079.0,0.3608]
[1733866290032,0.15582441,97086.0,97083.0,0.3608]
[1733866290237,0.00154557,97086.0,97085.0,0.051467]
[1733866291037,0.051462,97096.0,97085.0,0.051467]
[1733866291038,0.15427884,97092.0,97085.0,0.051467]
[1733866291238,0.15427884,97092.0,97091.0,0.412264]
[1733866291442,0.15427884,97093.0,97092.0,0.051464]
[1733866291643,0.00869454,97105.0,97092.0,0.051464]
[1733866291644,0.12774645,97101.0,97092.0,0.051464]
[1733866291849,0.1912065,97136.0,97127.0,0.051445]
[1733866292141,0.051427,97162.0,97142.0,0.051437]
[1733866292142,0.12327907,97143.0,97142.0,0.051437]
[1733866292340,0.12327907,97143.0,97132.0,0.3608]
[1733866292341,0.0924593,97136.0,97132.0,0.3608]
[1733866292745,0.0924593,97136.0,97134.0,0.051441]
[1733866293051,0.04076127,97143.0,97142.0,0.051437]
[1733866293247,0.051428,97160.0,97153.0,0.051431]
[1733866293437,0.051428,97160.0,97157.0,0.051429]
[1733866293641,0.01,97161.0,97159.0,0.051428]
[1733866294038,0.01,97161.0,97160.0,0.3608]
[1733866294239,0.01,97161.0,97159.0,0.051428]
[1733866294437,0.01,97161.0,97159.0,0.00869775]
[1733866294641,0.01,97161.0,97142.0,0.3608]
[1733866294642,0.051428,97159.0,97153.0,0.051431]
[1733866294846,0.01,97161.0,97155.0,0.3608]
[1733866295147,0.01,97161.0,97160.0,0.051428]
[1733866295545,0.011,97161.0,97160.0,0.051428]
[1733866295944,0.013,97161.0,97160.0,0.051428]
[1733866296336,0.051426,97163.0,97160.0,0.051428]
[1733866296752,0.002,97161.0,97160.0,0.052428]
[1733866297150,0.00881861,97189.0,97180.0,0.051417]
[1733866297343,0.051417,97180.0,97178.0,0.051418]
[1733866297653,0.051417,97180.0,97179.0,0.3608]
[1733866298153,0.051417,97180.0,97161.0,0.36093107]
[1733866298154,0.3608,97180.0,97169.0,0.3608]
[1733866298452,0.05142,97175.0,97169.0,0.3608]
[1733866298750,0.16190294,97190.0,97169.0,0.3608]
[1733866298751,0.3608,97191.0,97169.0,0.3608]
[1733866299238,0.3608,97191.0,97169.0,0.36971844]
[1733866299239,0.051417,97180.0,97169.0,0.36971844]
[1733866299443,0.051417,97180.0,97178.0,0.001]
[1733866299649,0.051417,97180.0,97179.0,0.3608]
[1733866299956,0.051414,97186.0,97179.0,0.3608]
[1733866300144,0.128,97199.0,97179.0,0.3608]
[1733866300341,0.051413,97188.0,97185.0,0.051414]
[1733866301041,0.128,97199.0,97185.0,0.051414]
[1733866301442,0.051411,97192.0,97185.0,0.051414]
[1733866302153,0.38840583,97200.0,97185.0,0.051414]
[1733866302454,0.02760583,97200.0,97198.0,0.051407]
[1733866302647,0.02760583,97200.0,97199.0,0.3608]
[1733866303056,0.0656,97226.0,97199.0,0.3608]
[1733866303057,0.3608,97229.0,97199.0,0.3608]
[1733866303244,0.3608,97232.0,97216.0,0.15250942]
[1733866303448,0.05139,97231.0,97216.0,0.15250942]
[1733866303747,0.1291,97239.0,97229.0,0.051391]
[1733866303748,0.051388,97236.0,97229.0,0.051391]
[1733866303945,0.1291,97239.0,97201.0,0.3608]
[1733866303946,0.3608,97230.0,97201.0,0.3608]
[1733866304245,0.4899,97239.0,97227.0,0.051392]
[1733866304546,0.4899,97239.0,97220.0,0.15250942]
[1733866304547,0.3608,97228.0,97220.0,0.15250942]
[1733866304751,0.4899,97239.0,97220.0,0.15250942]
[1733866304752,0.3608,97239.0,97220.0,0.15250942]
[1733866305144,0.3608,97239.0,97222.0,0.051394]
[1733866305344,0.051393,97226.0,97222.0,0.051394]
[1733866305747,0.3608,97239.0,97229.0,0.001]
[1733866306044,0.051384,97242.0,97232.0,0.051389]
[1733866306447,0.3608,97237.0,97230.0,7.562e-05]
[1733866306651,0.051382,97246.0,97233.0,0.051389]
[1733866306845,0.3608,97246.0,97233.0,0.051389]
[1733866307044,0.3608,97246.0,97230.0,0.36087562]
[1733866307348,0.3608,97246.0,97230.0,0.36983388]
[1733866307349,0.051387,97237.0,97230.0,0.36983388]
[1733866307949,0.05139,97232.0,97230.0,0.36087562]
[1733866308152,0.05139,97232.0,97230.0,7.562e-05]
[1733866309154,0.05139,97232.0,97230.0,6.2e-07]
[1733866309852,0.35139,97232.0,97230.0,6.2e-07]
[1733866310245,7.5e-05,97231.0,97230.0,6.2e-07]
[1733866310748,0.300075,97231.0,97230.0,6.2e-07]
[1733866310945,0.300075,97231.0,97173.0,0.3608]
[1733866311251,0.3608,97192.0,97173.0,0.3608]
[1733866311566,0.051414,97186.0,97174.0,0.05142]
[1733866311850,0.051415,97185.0,97174.0,0.05142]
[1733866312250,0.051415,97185.0,97175.0,0.051419]
[1733866312953,0.0631,97191.0,97184.0,0.3608]
[1733866313545,0.051414,97186.0,97184.0,0.3608]
[1733866313747,0.15250942,97200.0,97184.0,0.3608]
[1733866314053,0.051414,97186.0,97184.0,0.3608]
[1733866314453,0.051414,97186.0,97184.0,0.2618]
[1733866314855,0.051414,97186.0,97174.0,0.008]
[1733866315052,0.05142,97175.0,97174.0,0.005]
[1733866315251,0.05142,97175.0,97168.0,9.724e-05]
[1733866315252,0.051422,97170.0,97168.0,9.724e-05]
[1733866315453,0.051422,97170.0,97168.0,2.4e-07]
[1733866315454,0.0656,97169.0,97168.0,2.4e-07]
[1733866316053,0.0656,97169.0,97141.0,0.3608]
[1733866316054,0.051437,97143.0,97141.0,0.3608]
[1733866316260,0.3608,97156.0,97141.0,0.3608]
[1733866316455,0.051433,97151.0,97142.0,0.17555614]
[1733866316650,0.3608,97165.0,97142.0,0.12411914]
[1733866316850,0.0604,97164.0,97142.0,0.12411914]
[1733866317051,7.852e-05,97163.0,97142.0,0.12411914]
[1733866317361,7.852e-05,97163.0,97162.0,0.3608]
[1733866318248,0.0656,97169.0,97165.0,0.051425]
[1733866318451,0.051416,97183.0,97174.0,0.05142]
[1733866318646,0.051416,97182.0,97174.0,0.05142]
[1733866318953,0.3608,97190.0,97181.0,0.3608]
[1733866319157,0.412212,97190.0,97181.0,0.412216]
[1733866319456,0.412212,97190.0,97181.0,0.3608]
[1733866319457,8.836e-05,97189.0,97181.0,0.3608]
[1733866319856,8.836e-05,97189.0,97188.0,0.051413]
[1733866320963,8.836e-05,97189.0,97188.0,0.06038012]
[1733866321257,0.05150036,97189.0,97186.0,0.29974434]
[1733866321455,0.05150036,97189.0,97187.0,0.33712651]
[1733866321655,0.05150036,97189.0,97188.0,0.004]
[1733866322258,0.05150036,97189.0,97188.0,0.012]
[1733866322457,0.05150036,97189.0,97188.0,0.008]
[1733866322757,8.836e-05,97189.0,97188.0,0.008]
[1733866322958,0.0626,97201.0,97188.0,0.007]
[1733866323156,0.0626,97201.0,97196.0,0.18084032]
[1733866323359,0.051406,97200.0,97196.0,0.1808576]
[1733866323662,0.051408,97197.0,97196.0,0.1808576]
[1733866324061,0.05141,97194.0,97193.0,0.1808576]
[1733866324461,0.051411,97192.0,97190.0,0.051412]
[1733866324661,0.0626,97201.0,97188.0,0.24812043]
[1733866324859,0.051408,97197.0,97196.0,0.18086513]
[1733866325056,0.052408,97197.0,97195.0,0.051409]
[1733866325364,0.05141,97194.0,97193.0,0.3608]
[1733866325563,0.05141,97194.0,97193.0,0.3618]
[1733866325970,0.05141,97194.0,97193.0,0.001]
[1733866326268,0.051412,97190.0,97172.0,0.18086582]
[1733866326461,0.05142,97174.0,97172.0,0.18086582]
[1733866326663,0.05142,97174.0,97169.0,0.18086582]
[1733866326860,0.051422,97171.0,97169.0,0.18086582]
[1733866328068,0.3608,97187.0,97168.0,0.18086582]
[1733866328566,0.051422,97171.0,97170.0,0.3688]
[1733866328765,0.051422,97171.0,97170.0,0.3728]
[1733866329164,0.0619,97189.0,97170.0,0.3678]
[1733866329367,0.3608,97197.0,97180.0,0.3608]
[1733866329564,0.051405,97203.0,97199.0,0.051407]
[1733866329770,0.0629,97211.0,97199.0,0.051407]
[1733866329771,0.051402,97208.0,97199.0,0.051407]
[1733866329964,0.051403,97207.0,97199.0,0.051407]
[1733866330172,0.0629,97211.0,97199.0,0.051407]
[1733866330371,0.051405,97204.0,97199.0,0.051407]
[1733866330571,0.3608,97223.0,97199.0,0.18086582]
[1733866330764,0.051399,97214.0,97213.0,0.3608]
[1733866331161,0.051403,97207.0,97205.0,0.3608]
[1733866331369,0.051403,97207.0,97205.0,0.051403]
[1733866331872,0.051403,97207.0,97186.0,0.051413]
[1733866331873,0.054399,97214.0,97213.0,0.001]
[1733866332280,0.002,97214.0,97204.0,0.3608]
[1733866332485,0.002,97214.0,97205.0,0.003]
[1733866332486,0.051402,97208.0,97205.0,0.003]
[1733866332675,0.051402,97208.0,97205.0,0.006]
[1733866332877,0.051402,97208.0,97206.0,0.051403]
[1733866333178,0.051401,97211.0,97208.0,0.051402]
[1733866333377,0.0629,97222.0,97205.0,0.006]
[1733866333584,0.051403,97207.0,97205.0,0.006]
[1733866333971,0.051403,97207.0,97205.0,0.003]
[1733866334478,0.051404,97205.0,97204.0,0.3618]
[1733866334684,0.051404,97205.0,97189.0,0.24112043]
[1733866334685,0.051411,97191.0,97190.0,0.051411]
[1733866335182,0.051412,97189.0,97186.0,0.051414]
[1733866335372,0.051412,97189.0,97183.0,0.36234346]
[1733866335373,0.0596,97204.0,97185.0,0.18086582]
[1733866335573,0.0596,97204.0,97183.0,0.37137221]
[1733866335574,0.0596,97204.0,97183.0,0.54400928]
[1733866335784,0.051415,97184.0,97183.0,0.36234346]
[1733866335982,0.051415,97184.0,97183.0,0.00154346]
[1733866337177,0.051419,97176.0,97175.0,0.3608]
[1733866338890,0.051419,97176.0,97175.0,0.3618]
[1733866340582,0.0627,97183.0,97175.0,0.3608]
[1733866341184,0.3608,97207.0,97178.0,0.3608]
[1733866341488,0.051409,97195.0,97192.0,0.05141]
[1733866341790,0.051402,97208.0,97190.0,0.7216]
[1733866341983,0.412202,97208.0,97186.0,0.18086582]
[1733866342185,0.051406,97200.0,97183.0,0.18086582]
[1733866342386,0.051406,97200.0,97181.0,0.3608]
[1733866342387,0.3608,97208.0,97200.0,0.051406]
[1733866342584,0.0617,97209.0,97189.0,0.3608]
[1733866342585,0.0617,97209.0,97195.0,0.18086582]
[1733866342785,0.00060001,97208.0,97189.0,0.59307782]
[1733866342987,0.051411,97192.0,97189.0,0.59307782]
[1733866343188,0.0617,97209.0,97189.0,0.412212]
[1733866343393,0.0617,97209.0,97197.0,0.3608]
[1733866343587,0.051407,97198.0,97197.0,0.3608]
[1733866345193,0.052407,97198.0,97197.0,0.3608]
[1733866345692,0.001,97198.0,97175.0,0.18086582]
[1733866345895,0.051397,97218.0,97211.0,0.0514]
[1733866346193,0.15313887,97236.0,97197.0,0.412208]
[1733866346194,0.3608,97224.0,97208.0,0.15250942]
[1733866346395,0.051397,97219.0,97208.0,0.15250942]
[1733866346693,0.3608,97224.0,97211.0,0.18086582]
[1733866346888,0.412188,97235.0,97234.0,0.051388]
[1733866347490,0.3608,97235.0,97227.0,0.3608]
[1733866347696,0.05139,97232.0,97229.0,0.051391]
[1733866347886,0.3608,97235.0,97227.0,0.3608]
[1733866348091,0.3608,97235.0,97234.0,0.051388]
[1733866348285,0.3608,97235.0,97234.0,0.001]
[1733866348286,0.412188,97235.0,97234.0,0.001]
[1733866348491,0.051388,97235.0,97234.0,0.001]
[1733866348694,0.051389,97233.0,97231.0,0.05139]
[1733866348892,0.34568,97240.0,97231.0,0.05139]
[1733866349194,0.051387,97236.0,97235.0,0.00709744]
[1733866349994,0.34568,97240.0,97235.0,0.00709744]
[1733866350189,0.34568,97240.0,97239.0,0.051386]
[1733866350390,0.051387,97237.0,97235.0,0.00709744]
[1733866350596,0.34568,97240.0,97238.0,0.051386]
[1733866350799,0.397066,97240.0,97238.0,0.051386]
[1733866350991,0.04428956,97236.0,97220.0,0.3608]
[1733866351192,0.05139,97232.0,97230.0,0.05139]
[1733866351397,0.051387,97238.0,97236.0,0.051387]
[1733866351787,0.001,97237.0,97236.0,0.051387]
[1733866352496,0.051387,97238.0,97236.0,0.051387]
[1733866352497,0.052387,97238.0,97236.0,0.051387]
[1733866353096,0.052387,97238.0,97230.0,0.001]
[1733866353097,0.05139,97232.0,97230.0,0.001]
[1733866353301,0.3608,97231.0,97230.0,0.001]
[1733866353491,0.4217,97231.0,97230.0,0.001]
[1733866353898,0.051391,97230.0,97206.0,0.051403]
[1733866354101,0.051391,97230.0,97201.0,0.4212]
[1733866354102,0.051401,97211.0,97201.0,0.4212]
[1733866354300,0.3608,97217.0,97201.0,0.4204]
[1733866354599,0.051399,97215.0,97209.0,0.051401]
[1733866354798,0.0514,97213.0,97201.0,0.36961576]
[1733866354994,0.42222001,97231.0,97212.0,0.3608]
[1733866355201,0.051395,97222.0,97218.0,0.051396]
[1733866355397,0.051399,97214.0,97212.0,0.3608]
[1733866355706,0.051399,97214.0,97212.0,0.4122]
[1733866357197,0.051399,97214.0,97212.0,0.4152]
[1733866357595,0.051399,97214.0,97212.0,0.4122]
[1733866357791,0.051399,97214.0,97212.0,0.4132]
[1733866358705,0.052399,97214.0,97212.0,0.3618]
[1733866359212,0.052399,97214.0,97213.0,0.0514]
[1733866359803,0.0514,97213.0,97212.0,0.3618]
[1733866360108,0.0514,97213.0,97212.0,0.001]
[1733866360295,0.051401,97211.0,97210.0,0.051401]
[1733866360903,0.001,97214.0,97201.0,0.3608]
[1733866361100,0.051405,97202.0,97201.0,0.412206]
[1733866361504,0.051405,97202.0,97201.0,0.3608]
[1733866361696,0.001,97211.0,97201.0,0.3608]
[1733866362106,0.00269341,97206.0,97203.0,0.051405]
[1733866362299,0.051404,97205.0,97203.0,0.051405]
[1733866362604,0.051404,97205.0,97204.0,0.051404]
[1733866363197,0.05409741,97205.0,97204.0,0.051404]
[1733866363705,0.051404,97204.0,97203.0,0.001]
[1733866363892,0.00269341,97205.0,97204.0,0.051404]
[1733866364405,0.00269341,97205.0,97204.0,0.053404]
[1733866364800,0.00269341,97205.0,97204.0,0.052404]
[1733866365998,0.00269341,97205.0,97204.0,0.051404]
[1733866366199,0.00269341,97205.0,97204.0,0.053404]
[1733866366409,0.00269341,97205.0,97204.0,0.23426982]
[1733866367108,0.00269341,97205.0,97204.0,0.23526982]
[1733866367301,0.00269341,97205.0,97204.0,0.054404]
[1733866369405,0.00269341,97205.0,97204.0,0.29552443]
[1733866369604,0.00269341,97205.0,97204.0,0.054404]
[1733866372912,0.00269341,97205.0,97204.0,0.35721656]
[1733866373206,0.00269341,97205.0,97204.0,0.054404]
[1733866373517,0.00269341,97205.0,97204.0,0.35721656]
[1733866374105,0.00269341,97205.0,97204.0,0.054404]
[1733866374309,0.00269341,97205.0,97204.0,0.37373526]
[1733866375416,0.051389,97234.0,97233.0,0.051388]
[1733866377100,0.054389,97234.0,97233.0,0.051388]
[1733866378814,0.051389,97232.0,97231.0,0.0093767]
[1733866379031,0.051391,97230.0,97225.0,0.18188797]
[1733866379209,0.051393,97225.0,97223.0,0.18188797]
[1733866379408,0.051391,97230.0,97219.0,0.36998072]
[1733866379409,0.051391,97230.0,97219.0,0.3608]
[1733866379709,0.051396,97220.0,97219.0,0.412196]
[1733866380310,0.051396,97220.0,97219.0,0.3608]
[1733866381115,0.0514,97212.0,97211.0,0.18188797]
[1733866381512,0.0629,97219.0,97210.0,0.23328897]
[1733866381714,0.051401,97211.0,97210.0,0.23328897]
[1733866381911,0.051401,97211.0,97210.0,0.051401]
[1733866382115,0.051401,97211.0,97210.0,0.23328897]
[1733866382311,0.051401,97211.0,97210.0,0.051401]
[1733866383215,0.051402,97208.0,97207.0,0.24256204]
[1733866383421,0.051397,97218.0,97206.0,0.0008]
[1733866383422,0.051403,97207.0,97206.0,0.0008]
[1733866383624,0.051407,97199.0,97198.0,0.54287305]
[1733866383918,0.051403,97206.0,97196.0,0.18207305]
[1733866383919,0.051408,97197.0,97196.0,0.18207305]
[1733866384125,0.051409,97196.0,97195.0,0.05149835]
[1733866384713,0.051409,97196.0,97195.0,0.23358426]
[1733866384916,0.051409,97196.0,97195.0,0.05149835]
[1733866385226,0.051406,97202.0,97201.0,0.051405]
[1733866385424,0.48337385,97209.0,97208.0,0.051402]
[1733866385425,0.051402,97209.0,97208.0,0.051402]
[1733866385717,0.0633,97210.0,97209.0,0.051402]
[1733866385919,0.4237,97219.0,97218.0,0.051397]
[1733866385920,0.475097,97219.0,97218.0,0.051397]
[1733866386124,0.4237,97219.0,97218.0,0.05461095]
[1733866386317,0.051396,97221.0,97220.0,0.051394]
[1733866386626,0.051396,97221.0,97220.0,0.00321395]
[1733866387117,0.051396,97221.0,97220.0,0.05460995]
[1733866387622,0.051396,97221.0,97220.0,0.00321395]
[1733866388217,0.3608,97222.0,97214.0,0.051399]
[1733866389224,0.051395,97221.0,97220.0,0.001]
[1733866389522,0.051395,97221.0,97220.0,0.00421406]
[1733866389725,0.051395,97221.0,97220.0,0.00321406]
[1733866390818,0.053395,97221.0,97220.0,0.00321406]
[1733866392332,0.051395,97221.0,97220.0,0.00321406]
[1733866392533,0.053395,97221.0,97220.0,0.00321406]
[1733866393220,0.052395,97221.0,97220.0,0.00321406]
[1733866393419,0.052395,97221.0,97220.0,0.00321393]
[1733866393629,0.051405,97203.0,97202.0,0.051405]
[1733866394122,0.4839082,97211.0,97197.0,0.3614]
[1733866394430,0.051407,97198.0,97197.0,0.3608]
[1733866394620,0.051407,97198.0,97197.0,0.412208]
[1733866394926,0.1218,97202.0,97197.0,0.3608]
[1733866395232,0.1218,97202.0,97201.0,0.051406]
[1733866395730,0.173205,97202.0,97201.0,0.051406]
[1733866396524,0.173205,97202.0,97201.0,0.056406]
[1733866396728,0.173205,97202.0,97201.0,0.005]
[1733866397127,0.173205,97202.0,97201.0,0.001]
[1733866398038,0.173205,97202.0,97195.0,8.935e-05]
[1733866398039,0.051409,97196.0,97195.0,8.935e-05]
[1733866400024,0.054409,97196.0,97195.0,8.935e-05]
[1733866400733,0.051409,97196.0,97195.0,8.935e-05]
[1733866400923,0.053409,97196.0,97195.0,8.935e-05]
[1733866401124,0.002,97196.0,97195.0,0.05149835]
[1733866402127,0.002,97196.0,97195.0,8.935e-05]
[1733866402319,0.004,97196.0,97195.0,8.935e-05]
[1733866402523,0.004,97196.0,97195.0,0.00936867]
[1733866402728,0.004,97196.0,97195.0,8.935e-05]
[1733866403135,0.002,97196.0,97195.0,8.935e-05]
[1733866403339,0.002,97196.0,97195.0,0.00208935]
[1733866404030,0.051408,97197.0,97195.0,0.00208935]
[1733866404729,0.051408,97197.0,97195.0,8.935e-05]
[1733866405031,0.051408,97197.0,97195.0,0.00108935]
[1733866405636,0.051408,97197.0,97195.0,8.935e-05]
[1733866405834,0.001,97196.0,97195.0,8.935e-05]
[1733866407344,0.004,97197.0,97195.0,0.36088935]
[1733866407527,0.004,97197.0,97195.0,0.6640864]
[1733866407833,0.004,97197.0,97195.0,0.06072436]
[1733866408027,0.001,97196.0,97195.0,0.06072436]
[1733866408439,0.054408,97197.0,97195.0,0.42152436]
[1733866408740,0.055408,97197.0,97195.0,0.42152436]
[1733866409129,0.052408,97197.0,97195.0,0.60341003]
[1733866409331,0.003,97196.0,97195.0,0.42152436]
[1733866409535,0.003,97196.0,97195.0,0.60345528]
[1733866409932,0.001,97197.0,97195.0,0.60344937]
[1733866410133,0.002,97197.0,97195.0,0.42152436]
[1733866410533,0.002,97197.0,97195.0,0.66399463]
[1733866410838,0.001,97196.0,97195.0,0.42152436]
[1733866411342,0.002,97196.0,97195.0,0.42152436]
[1733866411837,0.002,97196.0,97195.0,0.66408075]
[1733866411838,0.001,97196.0,97195.0,0.66408075]
[1733866412037,0.002,97196.0,97195.0,0.42152436]
[1733866412427,0.002,97196.0,97195.0,0.24268434]
[1733866412634,0.002,97196.0,97195.0,0.60348434]
[1733866412934,0.002,97196.0,97195.0,8.935e-05]
[1733866413140,0.001,97196.0,97195.0,8.935e-05]
[1733866413442,0.01036404,97196.0,97195.0,8.935e-05]
[1733866413739,0.052409,97196.0,97195.0,8.935e-05]
[1733866413936,0.053409,97196.0,97195.0,8.935e-05]
[1733866414142,0.414209,97196.0,97195.0,8.935e-05]
[1733866414332,0.50648913,97196.0,97195.0,8.935e-05]
[1733866414529,0.84673764,97196.0,97195.0,3.5e-07]
[1733866414731,0.05142,97174.0,97160.0,0.24255639]
[1733866414933,0.7216,97174.0,97150.0,0.24255639]
[1733866415238,0.051434,97148.0,97146.0,0.00969937]
[1733866415431,0.051434,97148.0,97146.0,0.00913937]
[1733866415631,9.533e-05,97147.0,97139.0,0.36136]
[1733866415837,9.533e-05,97147.0,97139.0,0.3608]
[1733866415838,0.051438,97141.0,97139.0,0.3608]
[1733866416836,9.533e-05,97147.0,97139.0,0.3608]
[1733866417043,9.533e-05,97147.0,97146.0,0.051435]
[1733866417631,9.533e-05,97147.0,97146.0,0.060435]
[1733866417832,9.533e-05,97147.0,97146.0,0.009]
[1733866418036,9.533e-05,97147.0,97144.0,0.051436]
[1733866418240,9.533e-05,97147.0,97142.0,0.3608]
[1733866418241,0.05152933,97147.0,97146.0,0.008]
[1733866418631,0.05152933,97147.0,97142.0,0.3608]
[1733866418632,0.051437,97143.0,97142.0,0.3608]
[1733866420140,0.051437,97143.0,97142.0,0.3658]
[1733866420852,0.051437,97143.0,97142.0,0.005]
[1733866421230,0.051437,97143.0,97142.0,0.014]
[1733866422341,0.051437,97143.0,97125.0,0.3608]
[1733866422342,0.051446,97126.0,97125.0,0.3608]
[1733866423737,0.051446,97126.0,97124.0,8.078e-05]
[1733866423943,0.053446,97126.0,97124.0,8.078e-05]
[1733866424344,0.051446,97126.0,97124.0,8.078e-05]
[1733866424543,0.055446,97126.0,97124.0,8.078e-05]
[1733866424940,0.051446,97126.0,97124.0,8.078e-05]